Cogmind - Beta 17 @@@ ROGUE MODE // 2026.07.03 @ 17:14:20 Player: KURIIRI Result: Destroyed by D-53 Grenadier with Mini Grenade Launcher Performance ------------- Evolutions (0) 0 Regions Visited (2) 400 Robots Destroyed (32) 160 Value Destroyed (772) 772 Prototype IDs (1) 20 Alien Tech Used (0) 0 Bonus (5100) 5100 TOTAL SCORE: 6452 Bonus ------- Prayed to X0-1V1 5000 Major X0-1V1 Interference 100 Cogmind --------- Core Integrity 0/150 Matter 300/300 Energy 240/300 System Corruption 1% Temperature Warm (126) Movement Rolling (145) Ox3 Location -10/Mines Parts ------- > --- POWER (1) -------- (None) > --- PROPULSION (1) --- Compact Wheel > --- UTILITY (3) ------ High-capacity Storage Unit X0-1V1's Piety Tracker > --- WEAPON (2) ------- Particle Cannon Particle Cannon > --- INVENTORY (20) --- Light Ion Engine Light Treads Light Treads Light Treads Light Treads Improved Heat Sink Improved Heat Sink Medium Matter Pod (100) Improved Targeting Computer Hacking Suite Particle Cannon Particle Cannon Light Cannon Light Cannon Grenade Launcher Mini Grenade Launcher Mini Grenade Launcher Mini Grenade Launcher Mini Grenade Launcher Peak State ------------ > --- POWER ------------ Ion Engine > --- PROPULSION ------- Light Treads Light Treads > --- UTILITY ---------- High-capacity Storage Unit X0-1V1's Piety Tracker > --- WEAPON ----------- Particle Cannon Particle Cannon > --- INVENTORY -------- Light Ion Engine Light Treads Light Treads Light Treads Compact Wheel Improved Heat Sink Improved Heat Sink Medium Matter Pod Sensor Array Improved Targeting Computer Hacking Suite Particle Cannon Particle Cannon Light Cannon Light Cannon Grenade Launcher Mini Grenade Launcher Mini Grenade Launcher Mini Grenade Launcher Mini Grenade Launcher [Rating: 24] Favorites ----------- Power Ion Engine Engine Ion Engine Propulsion Light Treads Treads Light Treads Leg Aluminum Leg Wheel Compact Wheel Utility High-capacity Storage Unit Device Sensor Array Storage High-capacity Storage Unit Protection Light Armor Plating Weapon Light Cannon Energy Gun Small Laser Energy Cannon Particle Cannon Ballistic Gun Assault Rifle Ballistic Cannon Light Cannon Launcher Mini Grenade Launcher Build | -11 -10 -10 ------- Run | Yrd Mat Min Slots Evolved . | . . . Power . | . . . Propulsion . | . . . Utility . | . . . Weapon . | . . . Parts Attached 16 | . 15 1 Power 1 | . 1 . Engine 1 | . 1 . Core . | . . . Reactor . | . . . Propulsion 5 | . 4 1 Treads 4 | . 4 . Leg . | . . . Wheel 1 | . . 1 Hover . | . . . Flight . | . . . Utility 4 | . 4 . Device 2 | . 2 . Storage 1 | . 1 . Processor . | . . . Hackware . | . . . Protection 1 | . 1 . Artifact . | . . . Weapon 6 | . 6 . Energy Gun . | . . . Energy Cannon 2 | . 2 . Ballistic Gun 1 | . 1 . Ballistic Cannon 2 | . 2 . Launcher 1 | . 1 . Special Weapon . | . . . Impact Weapon . | . . . Slashing Weapon . | . . . Piercing Weapon . | . . . Special Melee Weapon . | . . . Unidentified Prototypes 1 | . 1 . Parts Lost 2 | . . 2 Power 1 | . . 1 Propulsion . | . . . Utility 1 | . . 1 Weapon . | . . . Highest Loss Streak 2 | . . 2 To Critical Strikes . | . . . Average Backups 15 | 6 15 19 Power 1 | 1 1 1 Propulsion 3 | 4 3 4 Utility 3 | . 3 5 Weapon 7 | 1 6 9 Tool/Special . | . . . Unused Backups 28 | . 12 16 Power 2 | . 1 1 Propulsion 5 | . 3 2 Utility 7 | . 2 5 Weapon 14 | . 6 8 Tool/Special . | . . . Average Slot Usage (%) 96 | . 96 98 Engine 13 | . 14 13 Treads 25 | . 27 15 Device 5 | . 3 14 Storage 14 | . 14 14 Protection 6 | . 6 5 Energy Cannon 8 | . 5 28 Ballistic Gun 3 | . 3 . Ballistic Cannon 15 | . 17 . Peak Build Rating 24 | 6 24 24 Average Rating 11 | 6 9 23 On Entrance 12 | 6 6 24 Avg Prop Armor Cover (%) . | . . . Naked Turns . | . . . Heaviest Build 57 | 12 56 57 Greatest Support 40 | 20 40 40 Greatest Overweight (x) 3 | . 1 3 Average Overweight (x) . | . . 2 Largest Inventory Capacity 20 | 8 20 20 Average Capacity 17 | 8 17 20 Most Carried 20 | 6 20 20 Average Carried 15 | 6 15 19 Final Capacity 20 | 8 20 20 Final Carried 20 | 6 20 19 Class Distribution -------------------- 100% | Mutant Dominant Class ---------------- Mutant | -10/Materials Mutant | -10/Mines Resources | -11 -10 -10 ----------- Run | Yrd Mat Min Matter Collected 861 | 200 623 38 Remotely . | . . . Salvage Created 859 | 84 775 . Parts 60 | 3 57 . Haulers Intercepted 2 | . 2 . Recyclers Shooed . | . . . Parts Field Recycled . | . . . Retrieved Matter . | . . . Parts Self-Destructed . | . . . Prevented . | . . . Parts Restored . | . . . Kills | -11 -10 -10 ------- Run | Yrd Mat Min Combat Hostiles Destroyed 20 | . 19 1 Guns 2 | . 2 . Cannons 17 | . 16 1 AOE 1 | . 1 . Classes Destroyed 10 | 2 7 1 Worker 1 | . 1 . Builder 1 | . 1 . Tunneler 1 | 1 . . Hauler 2 | . 2 . Recycler 1 | 1 . . Operator 3 | . 3 . Watcher 3 | . 3 . Swarmer 3 | . 3 . Grunt 16 | . 16 . Demolisher 1 | . . 1 Best Kill Streak 4 | 2 4 1 Combat Bots Only 4 | . 4 1 Max Kills in Single Turn 2 | 1 2 1 Gunslinging . | . . . Exploded 1 | . 1 . Melee . | . . . Uniques/NPCs Destroyed . | . . . Combat | -11 -10 -10 -------- Run | Yrd Mat Min Hostile Shots Fired 57 | . 53 4 Missed 15 | . 15 . Hits 42 | . 38 4 Projectile 42 | . 38 4 AOE 5 | . . 5 Damage Taken 812 | . 505 307 Core 180 | . 29 151 Absorbed by Shields . | . . . Core Remaining (%) 100 | 100 . . Volleys Fired 63 | 4 55 4 Largest 2 | 2 2 2 Hottest 136 | 80 136 136 Shots Fired 121 | 8 105 8 Gun 28 | 8 20 . Cannon 92 | . 84 8 Launcher 1 | . 1 . Special . | . . . Kinetic 97 | . 97 . Thermal 23 | 8 7 8 Explosive 1 | . 1 . Electromagnetic . | . . . Robot Hit Streak 5 | 2 5 5 Robot Miss Streak 5 | 1 5 2 Penetration Max . | . . . Secondary Targets . | . . . Shots Hit Robots 59 | 3 52 4 Core Hits 38 | 3 34 1 Critical Kills 1 | . 1 . Critical Parts Destroyed . | . . . Critical Strikes 3 | . 3 . Destroy 1 | . 1 . Blast 2 | . 2 . Melee Attacks . | . . . Impact . | . . . Slashing . | . . . Piercing . | . . . Sneak Attacks . | . . . Combat Hostiles . | . . . Follow-up Attacks . | . . . Damage Inflicted 1206 | 43 1080 83 Guns 194 | 43 151 . Cannons 850 | . 767 83 Explosions 133 | . 133 . Melee . | . . . Ramming 29 | . 29 . Kinetic 885 | . 885 . Thermal 159 | 43 33 83 Explosive 133 | . 133 . Electromagnetic . | . . . Impact . | . . . Slashing . | . . . Piercing . | . . . Highest Corruption 1 | . 1 1 Average Corruption 1 | . 1 1 Corruption Purged . | . . . Corruption Blocked . | . . . Effects 6 | . 3 3 Message Errors 3 | . . 3 Matter Fused 3 | . 3 . Overload Shots . | . . . Overflow Damage 1 | . 1 . Projectiles 1 | . 1 . Explosions . | . . . Melee . | . . . Knockbacks 8 | . 8 . Impact 1 | . 1 . Kinetic 6 | . 6 . Secondary 1 | . 1 . Self-Inflicted Damage . | . . . Shots . | . . . Rammed 4 | . 4 . Targets Rammed 4 | . 4 . Kicked . | . . . Crushed . | . . . Highest Temperature 196 | 54 196 126 Average Temperature 40 | 34 39 60 Received Heat Transfer 222 | . 222 . Siege Activations . | . . . Martial Activations . | . . . Shielding Activations . | . . . Robots Disrupted . | . . . Combat Hostiles . | . . . Robots Corrupted . | . . . Combat Hostiles . | . . . Parts Fried . | . . . Impact Corruptions . | . . . Robots Melted . | . . . Combat Hostiles . | . . . Parts Melted . | . . . Heat Transferred 310 | 100 62 148 Parts Sabotaged . | . . . Parts Stolen . | . . . Parts Stripped . | . . . Power Chain Reactions . | . . . Alert | -11 -10 -10 ------- Run | Yrd Mat Min Maximum Alert Level . | . . . Low Security (%) 100 | 100 100 100 Level 1 . | . . . Level 2 . | . . . Level 3 . | . . . Level 4 . | . . . Level 5 . | . . . High Security . | . . . Max Security . | . . . Peak Influence 194 | 10 194 61 Initial 61 | . 6 61 Average 71 | 6 82 13 Influence Increases 675 | 10 635 30 Destroy 0b10 Robot/C 400 | . 380 20 Destroy 0b10 Robot/NC 60 | 10 50 . Destroy Leader 110 | . 100 10 Successful Hack 32 | . 32 . Select Force Hacks 60 | . 60 . Destroy Structure 13 | . 13 . Influence Decreases 655 | . 488 167 Entered New Map 100 | . 4 96 Time Decay 545 | . 484 61 Lost Part 10 | . . 10 Squads Dispatched 6 | . 6 . Investigation 3 | . 3 . Extermination . | . . . Reinforcement 3 | . 3 . Assault . | . . . Garrison . | . . . Intercept . | . . . Searches Triggered . | . . . Construction Impeded . | . . . Haulers Reinforced . | . . . Active Scanning Responses . | . . . Cargo Convoy Interrupts . | . . . Stealth | -11 -10 -10 --------- Run | Yrd Mat Min Distress Signals 3 | . 2 1 Communications Jammed . | . . . Distress Signals . | . . . Times Spotted 28 | . 26 2 Peak Tracking Total 4 | . 4 2 Tactical Retreats . | . . . Traps | -11 -10 -10 ------- Run | Yrd Mat Min Traps Triggered 1 | . 1 . Indirectly . | . . . Trap Hack Attempts . | . . . Triggered . | . . . Disarmed . | . . . Reprogrammed . | . . . Reused . | . . . Traps Extracted . | . . . Installed . | . . . Triggered . | . . . Machines | -11 -10 -10 ---------- Run | Yrd Mat Min Machines Disabled . | . . . Max in Single Turn . | . . . Machines Repaired . | . . . Machines Dismantled . | . . . Machines Sabotaged . | . . . Overloaded Fab Kills . | . . . Hacking | -11 -10 -10 --------- Run | Yrd Mat Min Machines Accessed 7 | . 7 . Terminals 5 | . 5 . Fabricators . | . . . Repair Stations . | . . . Recycling Units 2 | . 2 . Scanalyzers . | . . . Garrison Access . | . . . Total Hacks 20 | . 20 . Successful 10 | . 10 . Failed 10 | . 10 . Catastrophic . | . . . Database Lockouts . | . . . Manual 21 | . 21 . Terminals 17 | . 17 . Fabricators . | . . . Repair Stations . | . . . Recycling Units 3 | . 3 . Scanalyzers . | . . . Garrison Access . | . . . Terminal Hacks 2 | . 2 . Robot Analysis 2 | . 2 . Fabricator Hacks . | . . . Repair Station Hacks . | . . . Recycling Unit Hacks . | . . . Scanalyzer . | . . . Garrison Access Hacks . | . . . Unauthorized Hacks 8 | . 8 . Terminals 6 | . 6 . Operators 1 | . 1 . Skim 5 | . 5 . Fabricators . | . . . Repair Stations . | . . . Recycling Units 2 | . 2 . Tunnel 2 | . 2 . Scanalyzers . | . . . Garrison Access . | . . . Data Cores Recovered . | . . . Used . | . . . Hacking Detections 5 | . 5 . Full Trace Events . | . . . Feedback Events . | . . . Feedback Blocked . | . . . Robot Schematics Acquired . | . . . Robots Built . | . . . Authchips . | . . . Time . | . . . Total Robot Build Rating . | . . . Part Schematics Acquired . | . . . Parts Built . | . . . Authchips . | . . . Time . | . . . Total Part Build Rating . | . . . Part Studies Acquired . | . . . Parts Repaired . | . . . Time . | . . . Parts Recycled . | . . . Recycled Matter . | . . . Retrieved Matter . | . . . Retrieved Components . | . . . Parts Scanalyzed . | . . . Part Schematics Acquired . | . . . Parts Damaged . | . . . Bothacking | -11 -10 -10 ------------ Run | Yrd Mat Min Used RIF Installer . | . . . Robots Hacked . | . . . Non-combat . | . . . Combat . | . . . Robot Hacks Applied . | . . . Relay Couplers Released . | . . . Fabnet Peak Effective % . | . . . Robots Rewired . | . . . Allies Hacked . | . . . Hacks Repelled . | . . . Allies | -11 -10 -10 -------- Run | Yrd Mat Min Total Allies . | . . . Largest Group . | . . . Highest-Rated Group . | . . . Highest-Rated Ally . | . . . Total Orders . | . . . Ally Attacks . | . . . Total Damage . | . . . Kills . | . . . Allies Corrupted . | . . . Allies Melted . | . . . X0-1V1 Amusement Gains 30 | . 10 20 Good Acts 1 | . 1 . Bad Acts 1 | . . 1 Intel | -11 -10 -10 ------- Run | Yrd Mat Min Active Infowar (turns) 416 | . 416 . Sensors 416 | . 416 . Robot Analysis Total 2 | . 2 . Derelict Logs Recovered 1 | . . 1 Drone Launches . | . . . Drone Recoveries . | . . . Exploration | -11 -10 -10 ------------- Run | Yrd Mat Min Turns Passed 2200 | 13 1857 330 Spaces Moved 902 | 1 731 170 Core . | . . . Treads 805 | . 731 74 Legs 1 | 1 . . Wheels 96 | . . 96 Hover . | . . . Flight . | . . . Fastest Speed 120 | 120 160 145 Average Speed 211 | 120 216 186 Slowest Speed 240 | 120 240 240 Overloaded Moves . | . . . Propulsion Burnouts . | . . . Robots Hopped . | . . . Potential Cave-ins . | . . . Cave-ins Triggered . | . . . Exploration Rate (%) 44 | 1 99 32 Regions Visited 2 Branch Regions 1 Pre-discovered Areas 2 | . 2 . Known Exits Taken . | . . . Unknown Exits Taken 2 | 1 1 . Scrap Searched 1 | . . 1 Spaces Dug . | . . . Terrain Destroyed 12 | . 12 . Melee . | . . . Projectile . | . . . AOE 12 | . 12 . Terrain Rammed . | . . . Walls Destroyed . | . . . Machines Disabled . | . . . Actions | -11 -10 -10 --------- Run | Yrd Mat Min Total 1075 | 4 894 177 Wait 56 | . 55 1 Move 900 | . 730 170 Hop . | . . . Pick Up 21 | . 21 . Fast Attach 4 | . 4 . Attach 3 | . 2 1 Detach . | . . . Swap 11 | . 10 1 Drop 13 | . 13 . Fire 63 | 4 55 4 Melee . | . . . Ram . | . . . Kick . | . . . Crush 4 | . 4 . Escape Stasis . | . . . Rewire . | . . . Trap . | . . . Miscellaneous . | . . . Route ------- -11/Scrapyard -10/Materials (discovered 6 exits: *Mat x3 / [*Min x2] / [*Sub]) -10/Mines (discovered 2 exits: Mat x2) History --------- Turn | Location | Event 14 | -11/Scrapyard | Discovered new exit (range 0) 14 | -11/Scrapyard | Entered Materials 304 | -10/Materials | Build established: Mutant 335 | -10/Materials | Discovered new exit (range 9) 557 | -10/Materials | Discovered new exit (range 16) 677 | -10/Materials | Discovered new exit (range 8) 848 | -10/Materials | Discovered new exit (range 16) 1242 | -10/Materials | Discovered new exit (range 4) 1408 | -10/Materials | Learned 2 Storage zone layouts 1444 | -10/Materials | Discovered new exit (range 9) 1464 | -10/Materials | Learned 2 Storage zone layouts 1546 | -10/Materials | Learned location of 2 exits from Mines 1573 | -10/Materials | Learned location of 2 exits from Materials 1592 | -10/Materials | Learned Storage stockpile data 1599 | -10/Materials | Learned location of 2 exits from Subcaves 1618 | -10/Materials | Loaded intel: 9 trap records 1682 | -10/Materials | Learned Storage emergency access door positions 1794 | -10/Materials | Prayed at D.C.S.S. Altar Unit 1869 | -10/Materials | Energy capacity permanently improved by X0-1V1 (+200; -100 max core) 1871 | -10/Materials | Entered Mines 1872 | -10/Mines | Identified exit to Materials 1950 | -10/Mines | Assembled infested the area 2048 | -10/Mines | X0-1V1 mutated your Propulsion slot to Utility slot 2082 | -10/Mines | Learned Materials machine intel 2195 | -10/Mines | Core integrity fell below 50% 2200 | -10/Mines | Core integrity fell below 20% 2201 | -10/Mines | Destroyed by D-53 Grenadier with Mini Grenade Launcher Last Messages --------------- 02112_ G=GG /AGKT&A2HSRXWUK8 02114_ 1V-0UX(g): "Hehe, this'll put a wrench in their mining defense operations..." 02114_ 1V-0UX(g) slips into the shadows. 02115_ K-01 Serf collects debris. 02135_ Searching scrap... 02135_ Found Lgt. Cannon. 02135_ Found 60 Matter. 02136_ Acquired 38 matter. 02194_ D-53 Grenadier triggered Dirty Bomb Trap. 02194_ An explosion rips through the floor. 02194_ Dirty Bomb Trap short circuited. 02194_ An explosion rips through the floor. 02195_ Ion Engine destroyed. 02195_ D-53 Grenadier destroyed. 02197_ Lgt. Armor Plating destroyed. 02200_ The unstable cave ceiling collapses. 02200_ K-01 Serf collects debris. 02201_ D-53 Grenadier misfires. 02201_ X0-1V1 cackles wildly! Map ----- +----------------------------------------------------+ | ??????????????????????## #??# ####### """ #?? | | ???????????????????????# #??# #?????# ##?? | | ???????????????????????# #??#=#?????## ##??? | | ??????????????????????## #??# #??????## ##???? | | ?????????????????????## #??# #???????# #????? | | ?????????????????????# #??# #???????# #????? | | ????????????????### ## #### #???????# #????? | | ????????? #???????# #????? | | ?????????? ######## ############## #????? | | ?????????????????????## ##???# #????? | | ??????????????????????####????# ##########????? | | ??????????????????????????????# #?????????????? | | ???????????????????????????#### #?????????????? | | ???????????????????????????# #?????????????? | | ???????????????????????????# ####?????????????? | | ???????????????????????? ??# #????????????????? | | ???????????????????????? ??# #????????????????? | | ???????????????????????? ??# #????????????????? | | ????????????????????????k??# #????????????????? | | ????????????????????##?? ??# ##???????????????? | | ???????????????????## ? ### ;#???????????????? | | ??????????????????## ## ;#???????????????? | | ????????????????### ;#???????????????? | | ????????????????? ########????????? | | ????????????????????# #????????? | | ????????????????????# # @ #????????? | | ????????????????????# ### #????????? | | ????????????????????# #?# #????????? | | ?????????????????#### #?# ####?????? | | ?????????? d ##?# #?????? | | ?????????????????###;; ;;; ####??# #?????? | | ???????????????????##; # ## ?????#####%##????? | | ????????????????????# ##?? ?????????#] ##???? | | ???????????????????? ???? ????????# #???? | | ???????????????????# ???? #????????## #???? | | ??????????????????? ????? #?????????# #???? | | ?????????????????? ??????##?????????# #???? | | ?????????????????? ?????????????????# ##??? | | ?????????????????? ?????????????????# ##?? | | ??????????????????? ?????????????????# #?? | | ??????????????????# ?????????????????# #?? | | ???????????????????# ??????????????????# ##?? | | ????